Cogmind - Beta 16 @@@ ROGUE MODE // 2025.12.07 @ 14:57:33 Player: Mozco Result: Self-destructed Performance ------------- Evolutions (4) 2000 Regions Visited (13) 2600 Robots Destroyed (126) 630 Value Destroyed (4315) 4315 Prototype IDs (35) 700 Alien Tech Used (1) 200 Bonus (792) 792 TOTAL SCORE: 11237 Bonus ------- Follower Combat Kills 643 Aligned with FarCom 300 Friendly Fire -151 Cogmind --------- Core Integrity 773/850 Matter 290/300 Energy 410/410 System Corruption 0% Temperature Cool (0) Movement Rolling (125) Ox2 Location -6/Lower Caves Parts ------- > --- POWER (2) -------- Fission Core Cold Fusion Reactor > --- PROPULSION (5) --- Armored Treads Armored Treads Compact Wheel Armored Huge Wheel > --- UTILITY (5) ------ Advanced Heat Sink Huge Storage Unit Structural Scanner > --- WEAPON (4) ------- Heavy EM Shotgun Wave Gun Phase Cannon Rocket Launcher > --- INVENTORY (25) --- Reinforced Deuterium Engine Light Treads Light Treads Light Treads Light Treads Improved Treads Improved Treads Armored Treads Improved Medium Treads Improved Medium Treads Improved Medium Treads Improved Medium Treads Improved Medium Treads Improved Medium Treads Wheel Hacking Drone Bay Precision Shock Rifle Proton Cannon Latent Energy Streamer Heavy Battle Rifle Heavy Machine Gun Heavy Machine Gun Heavy Machine Gun Proton Missile Launcher Datajack Peak State ------------ > --- POWER ------------ Fission Core Cold Fusion Reactor > --- PROPULSION ------- Armored Treads Armored Treads Compact Wheel Armored Huge Wheel > --- UTILITY ---------- Advanced Heat Sink Improved Cooling System Coolant Injector Huge Storage Unit > --- WEAPON ----------- Improved Lightning Gun Wave Gun Proton Cannon Phase Cannon > --- INVENTORY -------- Reinforced Deuterium Engine Light Treads Light Treads Light Treads Light Treads Improved Treads Improved Treads Armored Treads Improved Medium Treads Improved Medium Treads Improved Medium Treads Improved Medium Treads Improved Medium Treads Improved Medium Treads Wheel Structural Scanner Hacking Drone Bay Heavy EM Shotgun Heavy Riot Gun Precision Shock Rifle Heavy Particle Gun Beamcaster Latent Energy Streamer Proton Missile Launcher Rocket Launcher [Rating: 71] Favorites ----------- Power Reinforced Deuterium Engine Engine Reinforced Deuterium Engine Power Core Fission Core Reactor Cold Fusion Reactor Propulsion Light Treads Treads Light Treads Wheel Armored Huge Wheel Utility Huge Storage Unit Device Improved Heat Sink Storage Huge Storage Unit Processor Improved Signal Interpreter Hackware Makeshift System Shield Protection Layered Light Armor Plating Weapon Heavy Riot Gun Energy Gun Heavy Riot Gun Energy Cannon Beam Cannon Ballistic Gun Improved Assault Rifle Launcher Grenade Launcher Build | -11 -10 -10 -10 -9 -8 -7 -7 -7 -7 -6 -6 -6 -6 ------- Run | Yrd Mat Min Exi Min Mat Fac Low Low Zio Pro Fac Low Low Slots Evolved 8 | . . . . . 4 2 . . . . 2 . . Power 1 | . . . . . . . . . . . 1 . . Propulsion 3 | . . . . . 2 . . . . . 1 . . Utility 2 | . . . . . 2 . . . . . . . . Weapon 2 | . . . . . . 2 . . . . . . . Parts Attached 101 | 8 9 . . 4 31 15 1 6 . 12 13 2 . Power 16 | 1 2 . . 1 6 2 . . . . 4 . . Engine 9 | 1 1 . . 1 3 1 . . . . 2 . . Core 6 | . 1 . . . 3 1 . . . . 1 . . Reactor 1 | . . . . . . . . . . . 1 . . Propulsion 34 | 4 3 . . 2 11 2 . 1 . 9 2 . . Treads 17 | 2 . . . 2 3 1 . 1 . 6 2 . . Leg . | . . . . . . . . . . . . . . Wheel 17 | 2 3 . . . 8 1 . . . 3 . . . Hover . | . . . . . . . . . . . . . . Flight . | . . . . . . . . . . . . . . Utility 25 | 1 3 . . . 9 6 . 2 . 1 2 1 . Device 12 | . 2 . . . 2 3 . 2 . 1 1 1 . Storage 3 | 1 1 . . . 1 . . . . . . . . Processor 1 | . . . . . . 1 . . . . . . . Hackware 3 | . . . . . 2 . . . . . 1 . . Protection 6 | . . . . . 4 2 . . . . . . . Artifact . | . . . . . . . . . . . . . . Weapon 26 | 2 1 . . 1 5 5 1 3 . 2 5 1 . Energy Gun 14 | . . . . . 4 4 . 2 . 2 1 1 . Energy Cannon 4 | . 1 . . 1 . . . . . . 2 . . Ballistic Gun 4 | 2 . . . . 1 1 . . . . . . . Ballistic Cannon . | . . . . . . . . . . . . . . Launcher 4 | . . . . . . . 1 1 . . 2 . . Special Weapon . | . . . . . . . . . . . . . . Impact Weapon . | . . . . . . . . . . . . . . Slashing Weapon . | . . . . . . . . . . . . . . Piercing Weapon . | . . . . . . . . . . . . . . Special Melee Weapon . | . . . . . . . . . . . . . . Unidentified Prototypes 13 | . . . . . 6 4 . . . . 2 . 1 Corrupted Parts 6 | . . . . . 2 . . . . 4 . . . System Corruption 16 | . . . . . 2 . . . . 14 . . . Parts Lost 37 | . 4 . . 3 11 2 . 3 . 12 1 . 1 Power 4 | . 1 . . 1 2 . . . . . . . . Propulsion 14 | . 3 . . 1 5 . . . . 5 . . . Utility 6 | . . . . . 2 1 . 1 . 1 1 . . Weapon 13 | . . . . 1 2 1 . 2 . 6 . . 1 Highest Loss Streak 8 | . 1 . . 2 5 1 . 1 . 8 1 . 1 To Critical Strikes . | . . . . . . . . . . . . . . Average Backups 23 | 1 13 25 25 24 24 23 24 23 23 23 24 24 24 Power 1 | . 1 2 2 1 1 1 1 1 1 1 1 1 1 Propulsion 9 | 1 4 8 8 7 7 11 10 10 10 9 12 14 14 Utility 3 | . 3 7 7 7 6 2 4 3 3 4 3 1 1 Weapon 7 | . 3 7 7 7 9 9 9 8 9 8 8 8 7 Tool/Special . | . . . . . . . . . . . . . . Unused Backups 29 | . . 1 . . 7 1 . . . . 2 . 18 Power 2 | . . 1 . . . . . . . . 1 . . Propulsion 11 | . . . . . 1 . . . . . . . 10 Utility 5 | . . . . . 3 1 . . . . . . 1 Weapon 10 | . . . . . 3 . . . . . 1 . 6 Tool/Special 1 | . . . . . . . . . . . . . 1 Average Slot Usage (%) 92 | . 92 100 100 92 94 90 92 90 92 88 90 92 91 Engine 4 | . 9 . . 4 3 4 7 7 7 7 6 . . Core 3 | . 3 14 14 4 5 2 . . . . 3 6 6 Reactor 1 | . . . . . . . . . . . 2 6 6 Treads 12 | . . . . 21 16 15 15 15 15 15 9 13 13 Wheel 13 | . 26 28 28 4 17 8 7 7 7 7 15 13 13 Device 13 | . 9 14 14 14 12 13 7 9 15 14 14 19 20 Storage 8 | . 14 14 14 14 9 7 7 7 7 7 6 6 6 Protection 4 | . . . . . 8 7 15 12 7 7 1 . . Energy Gun 12 | . . . . . 13 15 9 15 23 21 22 13 11 Energy Cannon 4 | . 9 14 14 13 2 . . . . . 2 6 6 Ballistic Gun 6 | . 18 14 14 14 2 12 15 7 . . . . . Launcher 3 | . . . . . . . 4 5 7 4 . 5 6 Peak Build Rating 71 | 6 13 14 15 15 30 52 43 44 43 52 71 67 65 Average Rating 39 | 4 8 13 14 13 24 45 41 41 42 42 63 64 62 On Entrance 31 | . 6 13 14 15 13 29 43 41 43 43 48 64 65 Avg Prop Armor Cover (%) 11 | 15 3 . . . 13 11 9 9 11 11 10 14 14 Naked Turns . | . . . . . . . . . . . . . . Heaviest Build 132 | 12 90 90 90 90 102 121 120 121 119 118 132 128 127 Greatest Support 80 | 40 32 32 32 40 26 28 28 28 28 80 60 44 44 Greatest Overweight (x) 9 | . 8 2 2 5 9 5 4 4 4 4 2 2 2 Average Overweight (x) 2 | . 1 2 2 2 4 3 4 3 4 3 1 2 2 Largest Inventory Capacity 25 | 8 25 25 25 25 25 25 25 25 25 25 25 25 25 Average Capacity 24 | 6 20 25 25 25 25 25 25 25 25 25 25 25 25 Most Carried 25 | 4 25 25 25 25 25 25 25 25 25 25 25 25 25 Average Carried 23 | 2 13 24 25 24 24 24 25 24 24 24 24 24 24 Final Capacity 25 | 8 25 25 25 25 25 25 25 25 25 25 25 25 25 Final Carried 25 | 4 25 25 25 24 24 25 25 25 25 25 25 25 25 Class Distribution -------------------- 26% | Scavenger-Skirmisher 25% | Mutant 22% | Tank 11% | Scavenger-Tank 9% | Scavenger-Mutant 4% | Skirmisher Dominant Class ---------------- Mutant | -10/Materials Mutant | -10/Mines Mutant | -10/Exiles Mutant | -9/Mines Scavenger-Mutant | -8/Materials Scavenger-Skirmisher | -7/Factory Tank | -7/Lower Caves Tank | -7/Lower Caves Scavenger-Tank | -7/Zion Scavenger-Tank | -6/Proximity Caves Scavenger-Skirmisher | -6/Factory Scavenger-Skirmisher | -6/Lower Caves Scavenger-Skirmisher | -6/Lower Caves Resources | -11 -10 -10 -10 -9 -8 -7 -7 -7 -7 -6 -6 -6 -6 ----------- Run | Yrd Mat Min Exi Min Mat Fac Low Low Zio Pro Fac Low Low Matter Collected 2216 | 208 376 46 . 46 373 219 131 331 10 124 186 106 60 Remotely . | . . . . . . . . . . . . . . Salvage Created 5430 | . 931 . . 155 986 701 58 589 . 475 1204 148 183 Parts 256 | . 67 . . 4 52 36 5 21 . 15 47 5 4 Haulers Intercepted 8 | . 2 . . . 5 1 . . . . . . . Recyclers Shooed 7 | . 1 . . . 2 2 . . . . 2 . . Parts Field Recycled . | . . . . . . . . . . . . . . Retrieved Matter . | . . . . . . . . . . . . . . Parts Self-Destructed 62 | . . . . . . . 3 26 . 24 . 5 4 Prevented 22 | . . . . . . . . 4 . 17 . 1 . Parts Restored . | . . . . . . . . . . . . . . Kills | -11 -10 -10 -10 -9 -8 -7 -7 -7 -7 -6 -6 -6 -6 ------- Run | Yrd Mat Min Exi Min Mat Fac Low Low Zio Pro Fac Low Low Combat Hostiles Destroyed 94 | . 19 . . 5 9 11 4 19 . 6 13 3 5 Guns 47 | . 10 . . 1 5 10 . 8 . 5 5 1 2 Cannons 22 | . 9 . . 4 2 . . . . . 6 . 1 AOE 20 | . . . . . 1 . 4 10 . . 1 2 2 Classes Destroyed 17 | . 9 . . 1 2 3 . . . 1 1 . . Worker 5 | . 1 . . . 2 1 . . . . 1 . . Builder 3 | . 1 . . . 1 1 . . . . . . . Tunneler 3 | . 2 . . . 1 . . . . . . . . Hauler 8 | . 2 . . . 5 1 . . . . . . . Recycler 6 | . 2 . . . 2 . . . . . 2 . . Mechanic 1 | . . . . . . . . . . . 1 . . Operator 2 | . 1 . . . 1 . . . . . . . . Watcher 5 | . 2 . . . 2 . . . . . 1 . . Swarmer 20 | . 6 . . . . . 4 9 . . . 1 . Grunt 46 | . 13 . . 3 3 5 . 8 . 4 6 1 3 Brawler 4 | . . . . . . 1 . 1 . . 2 . . Duelist 2 | . . . . . . 1 . . . . 1 . . Protector 1 | . . . . . . . . . . 1 . . . Sentry 13 | . . . . . 4 2 . 1 . 1 3 1 1 Hunter 4 | . . . . . 2 1 . . . . . . 1 Programmer 2 | . . . . . . 1 . . . . 1 . . Decomposer 1 | . . . . . . . 1 . . . . . . Assembled 2 | . . . . 2 . . . . . . . . . Butcher 1 | . . . . . . . . . . 1 . . . Best Kill Streak 7 | . 5 . . 3 5 4 4 7 . 2 7 3 3 Combat Bots Only 7 | . 4 . . 3 3 3 4 7 . 2 5 3 3 Max Kills in Single Turn 3 | . 1 . . 1 1 2 3 3 . 1 2 1 2 Gunslinging 1 | . . . . . . . . 1 . . . . . Exploded 3 | . . . . . 1 . 3 3 . . 1 1 2 Melee . | . . . . . . . . . . . . . . Uniques/NPCs Destroyed . | . . . . . . . . . . . . . . Combat | -11 -10 -10 -10 -9 -8 -7 -7 -7 -7 -6 -6 -6 -6 -------- Run | Yrd Mat Min Exi Min Mat Fac Low Low Zio Pro Fac Low Low Hostile Shots Fired 605 | . 101 . . 27 83 70 9 78 . 92 81 20 44 Missed 178 | . 28 . . 5 24 26 3 16 . 18 32 10 16 Hits 427 | . 73 . . 22 59 44 6 62 . 74 49 10 28 Melee 6 | . . . . 2 . 2 . 1 . . 1 . . Projectile 421 | . 73 . . 20 59 42 6 61 . 74 48 10 28 Critical Strikes 16 | . . . . 1 3 1 . 4 . 3 1 1 2 Damage Taken 6229 | . 695 . . 292 919 588 90 1186 . 1356 523 158 422 Core 618 | . 217 . . 25 74 5 13 136 . 71 11 6 60 Absorbed by Shields 44 | . . . . . . . . 28 . 16 . . . Regen/Repaired (Parts) 744 | . 155 . . . 236 213 . . . . 140 . . Core Remaining (%) 64 | 100 . . . 3 86 . . . . 67 . . . Volleys Fired 333 | . 92 . . 19 65 33 3 32 . 27 35 13 14 Largest 4 | . 2 . . 2 2 4 4 4 . 4 4 4 3 Hottest 301 | . 80 . . 80 125 215 166 161 . 240 301 276 216 Shots Fired 794 | . 184 . . 36 129 98 6 95 . 68 124 28 26 Gun 641 | . 141 . . 19 107 98 4 86 . 68 90 16 12 Cannon 128 | . 43 . . 17 22 . . . . . 31 6 9 Launcher 25 | . . . . . . . 2 9 . . 3 6 5 Special . | . . . . . . . . . . . . . . Kinetic 258 | . 141 . . 19 12 32 2 52 . . . . . Thermal 349 | . 43 . . 17 97 34 2 26 . 27 75 11 17 Explosive 22 | . . . . . . . 2 9 . . . 6 5 Electromagnetic 165 | . . . . . 20 32 . 8 . 41 49 11 4 Robot Hit Streak 28 | . 12 . . 7 18 15 3 11 . 28 16 7 10 Robot Miss Streak 6 | . 5 . . 2 6 3 . 2 . 2 3 3 2 Penetration Max . | . . . . . . . . . . . . . . Secondary Targets 8 | . 2 . . . . 2 . 2 . 1 1 . . Max Gunslinging Chain 1 | . 1 . . . . 1 . 1 . 1 1 . . Shots Hit Robots 531 | . 112 . . 25 86 67 1 63 . 60 85 14 18 Core Hits 273 | . 47 . . 8 48 31 6 44 . 30 37 6 16 Critical Kills 2 | . 2 . . . . . . . . . . . . Critical Parts Destroyed 1 | . 1 . . . . . . . . . . . . Critical Strikes 15 | . 3 . . . 3 1 . 2 . 3 1 1 1 Burn 9 | . . . . . 3 . . 2 . 1 1 1 1 Destroy 3 | . 3 . . . . . . . . . . . . Corrupt 3 | . . . . . . 1 . . . 2 . . . Melee Attacks . | . . . . . . . . . . . . . . Impact . | . . . . . . . . . . . . . . Slashing . | . . . . . . . . . . . . . . Piercing . | . . . . . . . . . . . . . . Sneak Attacks . | . . . . . . . . . . . . . . Combat Hostiles . | . . . . . . . . . . . . . . Follow-up Attacks . | . . . . . . . . . . . . . . Damage Inflicted 11932 | . 1206 . . 336 1803 1537 299 1838 . 1100 2375 511 927 Guns 7496 | . 700 . . 101 1437 1279 17 940 . 1100 1430 249 243 Cannons 1844 | . 506 . . 227 212 . . . . . 687 89 123 Explosions 2584 | . . . . . 154 258 282 898 . . 258 173 561 Melee . | . . . . . . . . . . . . . . Ramming 8 | . . . . 8 . . . . . . . . . Kinetic 1815 | . 700 . . 101 44 411 17 542 . . . . . Thermal 5136 | . 506 . . 227 1387 569 . 270 . 387 1222 299 269 Explosive 1801 | . . . . . . . 282 898 . . . 60 561 Electromagnetic 3172 | . . . . . 372 557 . 128 . 713 1153 152 97 Impact . | . . . . . . . . . . . . . . Slashing . | . . . . . . . . . . . . . . Piercing . | . . . . . . . . . . . . . . Highest Corruption 14 | . . . . . 3 . . . . 14 . . . Average Corruption 2 | . . . . . 1 . . . . 12 . . . Corruption Purged . | . . . . . . . . . . . . . . Corruption Blocked . | . . . . . . . . . . . . . . Effects 2 | . . . . . . . . . . 2 . . . Matter Fused 1 | . . . . . . . . . . 1 . . . Data Loss (minor) 1 | . . . . . . . . . . 1 . . . Overload Shots . | . . . . . . . . . . . . . . Overflow Damage 145 | . . . . . 9 74 . 34 . . 23 5 . Projectiles 22 | . . . . . . . . . . . 22 . . Explosions 123 | . . . . . 9 74 . 34 . . 1 5 . Melee . | . . . . . . . . . . . . . . Knockbacks . | . . . . . . . . . . . . . . Impact . | . . . . . . . . . . . . . . Kinetic . | . . . . . . . . . . . . . . Secondary . | . . . . . . . . . . . . . . Self-Inflicted Damage 213 | . . . . . 31 99 . 83 . . . . . Shots 6 | . . . . . 1 2 . 3 . . . . . Rammed 2 | . . . . 2 . . . . . . . . . Targets Rammed 2 | . . . . 2 . . . . . . . . . Kicked . | . . . . . . . . . . . . . . Crushed . | . . . . . . . . . . . . . . Highest Temperature 352 | . 46 . . 44 99 325 81 319 . 352 234 198 50 Average Temperature 83 | . 16 . . 16 34 122 48 112 . 151 105 100 25 Received Heat Transfer 1896 | . 222 . . 105 243 126 . 300 . 491 177 72 160 Effects 3 | . . . . . . 1 . 2 . . . . . Shutdowns 1 | . . . . . . 1 . . . . . . . Energy Bleed 2 | . . . . . . . . 2 . . . . . Siege Activations . | . . . . . . . . . . . . . . Martial Activations . | . . . . . . . . . . . . . . Shielding Activations . | . . . . . . . . . . . . . . Robots Disrupted . | . . . . . . . . . . . . . . Combat Hostiles . | . . . . . . . . . . . . . . Robots Corrupted 4 | . . . . . . 1 . . . 1 2 . . Combat Hostiles 3 | . . . . . . 1 . . . 1 1 . . Parts Fried 12 | . . . . . . 3 . . . 3 5 . 1 Impact Corruptions . | . . . . . . . . . . . . . . Robots Melted 2 | . . . . . 1 . . 1 . . . . . Combat Hostiles 2 | . . . . . 1 . . 1 . . . . . Parts Melted 14 | . 2 . . . 2 . . . . 1 5 1 3 Heat Transferred 9190 | . 1073 . . 481 2670 742 . 834 . 626 1887 433 444 Parts Sabotaged . | . . . . . . . . . . . . . . Parts Stolen . | . . . . . . . . . . . . . . Parts Stripped . | . . . . . . . . . . . . . . Power Chain Reactions 5 | . . . . . 3 1 . . . . . 1 . Alert | -11 -10 -10 -10 -9 -8 -7 -7 -7 -7 -6 -6 -6 -6 ------- Run | Yrd Mat Min Exi Min Mat Fac Low Low Zio Pro Fac Low Low Maximum Alert Level 1 | . 1 . . . . . . . . . 1 . . Low Security (%) 98 | 100 98 100 . 100 100 100 . . . . 91 . . Level 1 1 | . 1 . . . . . . . . . 8 . . Level 2 . | . . . . . . . . . . . . . . Level 3 . | . . . . . . . . . . . . . . Level 4 . | . . . . . . . . . . . . . . Level 5 . | . . . . . . . . . . . . . . High Security . | . . . . . . . . . . . . . . Max Security . | . . . . . . . . . . . . . . Peak Influence 353 | . 204 48 . 50 115 184 . . . . 353 . . Initial 48 | . . 48 . . . 12 . . . . 36 . . Average 61 | . 125 4 . 4 39 99 . . . . 49 . . Influence Increases 3571 | . 639 . . 70 407 450 90 502 . 672 561 60 120 Destroy 0b10 Robot/C 2180 | . 380 . . 60 180 220 80 440 . 400 260 60 100 Destroy 0b10 Robot/NC 175 | . 55 . . . 70 15 . 5 . 5 25 . . Destroy Leader 426 | . 98 . . 10 84 72 10 40 . 40 52 . 20 Allied During Kill 214 | . . . . . . . . 17 . 197 . . . Successful Hack 103 | . 16 . . . 10 38 . . . . 39 . . Select Force Hacks 60 | . 60 . . . . . . . . . . . . Disable Machine 150 | . 15 . . . 45 75 . . . . 15 . . Anti-Garrison Action 150 | . . . . . . . . . . . 150 . . Destroy Structure 38 | . . . . . 18 15 . . . . 5 . . Lose Combat Pursuer 75 | . 15 . . . . 15 . . . 30 15 . . Influence Decreases 3571 | . 514 125 . 70 378 374 195 424 78 614 279 400 120 Entered New Map 360 | . . 77 . . . 17 40 . 78 . 22 126 . Time Decay 2661 | . 474 48 . 60 308 347 155 374 . 254 247 274 120 Lost Part 290 | . 40 . . 10 70 10 . 30 . 120 10 . . Lost Ally 260 | . . . . . . . . 20 . 240 . . . Squads Dispatched 26 | . 6 . . . 3 9 . 1 . 1 6 . . Investigation 12 | . 5 . . . 2 3 . . . . 2 . . Extermination 2 | . . . . . . 1 . . . . 1 . . Reinforcement 4 | . 1 . . . 1 2 . . . . . . . Assault 4 | . . . . . . . . 1 . 1 2 . . Garrison 4 | . . . . . . 3 . . . . 1 . . Intercept . | . . . . . . . . . . . . . . Searches Triggered . | . . . . . . . . . . . . . . Construction Impeded . | . . . . . . . . . . . . . . Haulers Reinforced 1 | . . . . . . 1 . . . . . . . Active Scanning Responses . | . . . . . . . . . . . . . . Cargo Convoy Interrupts . | . . . . . . . . . . . . . . Stealth | -11 -10 -10 -10 -9 -8 -7 -7 -7 -7 -6 -6 -6 -6 --------- Run | Yrd Mat Min Exi Min Mat Fac Low Low Zio Pro Fac Low Low Distress Signals 6 | . 2 . . 1 1 . . . . . 2 . . Communications Jammed . | . . . . . . . . . . . . . . Distress Signals . | . . . . . . . . . . . . . . Times Spotted 145 | . 34 . . 5 18 13 4 23 . 22 17 4 5 Peak Tracking Total 10 | . 5 . . 3 4 4 4 7 . 10 5 3 3 Tactical Retreats 4 | . 1 . . . . 1 . . . 1 1 . . Traps | -11 -10 -10 -10 -9 -8 -7 -7 -7 -7 -6 -6 -6 -6 ------- Run | Yrd Mat Min Exi Min Mat Fac Low Low Zio Pro Fac Low Low Traps Triggered 3 | . 1 . . . 1 . . . . . 1 . . Indirectly 1 | . . . . . . . . . . . 1 . . Trap Hack Attempts . | . . . . . . . . . . . . . . Triggered . | . . . . . . . . . . . . . . Disarmed . | . . . . . . . . . . . . . . Reprogrammed . | . . . . . . . . . . . . . . Reused . | . . . . . . . . . . . . . . Traps Extracted . | . . . . . . . . . . . . . . Installed . | . . . . . . . . . . . . . . Triggered . | . . . . . . . . . . . . . . Machines | -11 -10 -10 -10 -9 -8 -7 -7 -7 -7 -6 -6 -6 -6 ---------- Run | Yrd Mat Min Exi Min Mat Fac Low Low Zio Pro Fac Low Low Machines Disabled 11 | . 1 . . . 3 5 . . . . 2 . . Max in Single Turn 4 | . 1 . . . 1 4 . . . . 1 . . Garrison Access 1 | . . . . . . . . . . . 1 . . Machines Repaired . | . . . . . . . . . . . . . . Machines Dismantled . | . . . . . . . . . . . . . . Machines Sabotaged . | . . . . . . . . . . . . . . Overloaded Fab Kills . | . . . . . . . . . . . . . . Hacking | -11 -10 -10 -10 -9 -8 -7 -7 -7 -7 -6 -6 -6 -6 --------- Run | Yrd Mat Min Exi Min Mat Fac Low Low Zio Pro Fac Low Low Machines Accessed 30 | . 9 . 2 . 5 7 . 1 . . 6 . . Terminals 15 | . 6 . . . 4 3 . . . . 2 . . Fabricators 4 | . . . . . . 2 . . . . 2 . . Repair Stations 4 | . 1 . . . 1 1 . . . . 1 . . Recycling Units 2 | . 2 . . . . . . . . . . . . Scanalyzers 2 | . . . . . . 1 . . . . 1 . . Garrison Access . | . . . . . . . . . . . . . . Total Hacks 94 | . 29 . 2 . 17 20 . 1 . . 25 . . Successful 48 | . 14 . 2 . 9 7 . 1 . . 15 . . Failed 44 | . 14 . . . 8 13 . . . . 9 . . Catastrophic 7 | . 1 . . . 1 2 . . . . 3 . . Database Lockouts 2 | . 1 . . . . . . . . . 1 . . Manual 51 | . 23 . 1 . 12 7 . . . . 8 . . Terminals 49 | . 19 . . . 12 9 . . . . 9 . . Fabricators 13 | . . . . . . 7 . . . . 6 . . Repair Stations 15 | . 6 . . . 5 2 . . . . 2 . . Recycling Units 4 | . 4 . . . . . . . . . . . . Scanalyzers 10 | . . . . . . 2 . . . . 8 . . Garrison Access . | . . . . . . . . . . . . . . Terminal Hacks 14 | . 4 . 2 . 2 3 . 1 . . 2 . . Record 1 | . . . 1 . . . . . . . . . . Part Schematic 2 | . . . . . 1 1 . . . . . . . Robot Analysis 7 | . 4 . . . 1 1 . . . . 1 . . Open Door 1 | . . . . . . . . 1 . . . . . Level Access Points 1 | . . . . . . . . . . . 1 . . Locate Traps 1 | . . . . . . 1 . . . . . . . Proto ID Catalog 1 | . . . 1 . . . . . . . . . . Fabricator Hacks 4 | . . . . . . 1 . . . . 3 . . Network Status 1 | . . . . . . 1 . . . . . . . Load Schematic 2 | . . . . . . . . . . . 2 . . Build 1 | . . . . . . . . . . . 1 . . Repair Station Hacks 14 | . 6 . . . 4 2 . . . . 2 . . Scan Component 7 | . 3 . . . 2 1 . . . . 1 . . Repair 7 | . 3 . . . 2 1 . . . . 1 . . Recycling Unit Hacks . | . . . . . . . . . . . . . . Scanalyzer 6 | . . . . . . . . . . . 6 . . Insert Component 2 | . . . . . . . . . . . 2 . . Analyze 2 | . . . . . . . . . . . 2 . . Retrieve Study 2 | . . . . . . . . . . . 2 . . Garrison Access Hacks . | . . . . . . . . . . . . . . Unauthorized Hacks 10 | . 4 . . . 3 1 . . . . 2 . . Terminals 8 | . 2 . . . 3 1 . . . . 2 . . Botnet 8 | . 2 . . . 3 1 . . . . 2 . . Fabricators . | . . . . . . . . . . . . . . Repair Stations . | . . . . . . . . . . . . . . Recycling Units 2 | . 2 . . . . . . . . . . . . Tunnel 2 | . 2 . . . . . . . . . . . . Scanalyzers . | . . . . . . . . . . . . . . Garrison Access . | . . . . . . . . . . . . . . Data Cores Recovered . | . . . . . . . . . . . . . . Used . | . . . . . . . . . . . . . . Hacking Detections 25 | . 8 . . . 5 7 . . . . 5 . . Full Trace Events 12 | . 5 . . . 2 3 . . . . 2 . . Feedback Events 1 | . . . . . 1 . . . . . . . . Corruption 1 | . . . . . 1 . . . . . . . . Feedback Blocked . | . . . . . . . . . . . . . . Robot Schematics Acquired . | . . . . . . . . . . . . . . Robots Built . | . . . . . . . . . . . . . . Authchips . | . . . . . . . . . . . . . . Time . | . . . . . . . . . . . . . . Total Robot Build Rating . | . . . . . . . . . . . . . . Part Schematics Acquired 4 | . . . . . 1 1 . . . . 2 . . Parts Built 2 | . . . . . . . . . . . 2 . . Authchips . | . . . . . . . . . . . . . . Time 47 | . . . . . . . . . . . 47 . . Total Part Build Rating 10 | . . . . . . . . . . . 10 . . Part Studies Acquired 2 | . . . . . . . . . . . 2 . . Parts Repaired 7 | . 3 . . . 2 1 . . . . 1 . . Time 212 | . 78 . . . 52 38 . . . . 44 . . Parts Recycled . | . . . . . . . . . . . . . . Recycled Matter . | . . . . . . . . . . . . . . Retrieved Matter . | . . . . . . . . . . . . . . Retrieved Components . | . . . . . . . . . . . . . . Parts Scanalyzed 2 | . . . . . . . . . . . 2 . . Part Schematics Acquired 2 | . . . . . . . . . . . 2 . . Parts Damaged . | . . . . . . . . . . . . . . Bothacking | -11 -10 -10 -10 -9 -8 -7 -7 -7 -7 -6 -6 -6 -6 ------------ Run | Yrd Mat Min Exi Min Mat Fac Low Low Zio Pro Fac Low Low Used RIF Installer . | . . . . . . . . . . . . . . Robots Hacked . | . . . . . . . . . . . . . . Non-combat . | . . . . . . . . . . . . . . Combat . | . . . . . . . . . . . . . . Robot Hacks Applied . | . . . . . . . . . . . . . . Relay Couplers Released 1 | . . . . . . . . . . . 1 . . Machine Destruction 1 | . . . . . . . . . . . 1 . . Fabnet Peak Effective % . | . . . . . . . . . . . . . . Robots Rewired 4 | . . . . . . . . 2 . 2 . . . Allies Hacked . | . . . . . . . . . . . . . . Hacks Repelled . | . . . . . . . . . . . . . . Allies | -11 -10 -10 -10 -9 -8 -7 -7 -7 -7 -6 -6 -6 -6 -------- Run | Yrd Mat Min Exi Min Mat Fac Low Low Zio Pro Fac Low Low Total Allies 16 | . . 2 . . . . . 2 10 2 . . . Largest Group 11 | . . 2 2 . . . . 2 11 11 . . . Highest-Rated Group 288 | . . 49 49 . . . . 64 288 288 . . . Highest-Rated Ally 32 | . . 31 31 . . . . 32 32 32 . . . Total Orders . | . . . . . . . . . . . . . . Ally Attacks 92 | . . . . . . . . 10 . 82 . . . Total Damage 2143 | . . . . . . . . 383 . 1760 . . . Kills 19 | . . . . . . . . 4 . 15 . . . Allies Corrupted . | . . . . . . . . . . . . . . Allies Melted . | . . . . . . . . . . . . . . Intel | -11 -10 -10 -10 -9 -8 -7 -7 -7 -7 -6 -6 -6 -6 ------- Run | Yrd Mat Min Exi Min Mat Fac Low Low Zio Pro Fac Low Low Active Infowar (turns) 2824 | . . . . . . 601 . . . . . 941 1282 Sensors 601 | . . . . . . 601 . . . . . . . Structural 2223 | . . . . . . . . . . . . 941 1282 Robot Analysis Total 7 | . 4 . . . 1 1 . . . . 1 . . Derelict Logs Recovered 8 | . . 2 . . . . 2 . . 2 . 1 1 Drone Launches . | . . . . . . . . . . . . . . Drone Recoveries . | . . . . . . . . . . . . . . Exploration | -11 -10 -10 -10 -9 -8 -7 -7 -7 -7 -6 -6 -6 -6 ------------- Run | Yrd Mat Min Exi Min Mat Fac Low Low Zio Pro Fac Low Low Turns Passed 12876 | 74 1313 570 272 764 1118 858 702 1507 1214 1072 1051 1079 1282 Spaces Moved 7565 | 55 699 436 209 110 494 443 434 855 737 593 673 833 994 Core 7 | 7 . . . . . . . . . . . . . Treads 99 | 12 2 . . 80 . . . . . 5 . . . Legs . | . . . . . . . . . . . . . . Wheels 7459 | 36 697 436 209 30 494 443 434 855 737 588 673 833 994 Hover . | . . . . . . . . . . . . . . Flight . | . . . . . . . . . . . . . . Fastest Speed 50 | 50 90 130 130 130 135 145 160 145 160 145 115 125 125 Average Speed 142 | 106 125 130 130 276 141 155 160 159 160 156 124 125 125 Slowest Speed 320 | 160 200 130 130 320 215 160 160 160 160 240 130 125 125 Overloaded Moves . | . . . . . . . . . . . . . . Propulsion Burnouts . | . . . . . . . . . . . . . . Robots Hopped . | . . . . . . . . . . . . . . Potential Cave-ins . | . . . . . . . . . . . . . . Cave-ins Triggered . | . . . . . . . . . . . . . . Exploration Rate (%) 59 | 4 89 91 60 20 46 14 71 74 80 86 12 90 93 Regions Visited 13 Branch Regions 9 Pre-discovered Areas 7 | . 2 1 1 . . . . . 2 . . . 1 Known Exits Taken 1 | . . . . . . 1 . . . . . . . Unknown Exits Taken 12 | 1 1 1 1 1 1 . 1 1 1 1 1 1 . Scrap Searched 21 | . . 1 . . . . 3 4 3 3 . 4 3 Spaces Dug 15 | . . . . . . . . . . . 1 13 1 Terrain Destroyed 201 | . . . . . 16 14 10 48 . . 5 68 40 Melee . | . . . . . . . . . . . . . . Projectile 11 | . . . . . . . . . . . 5 1 5 AOE 190 | . . . . . 16 14 10 48 . . . 67 35 Terrain Rammed . | . . . . . . . . . . . . . . Walls Destroyed . | . . . . . . . . . . . . . . Machines Disabled . | . . . . . . . . . . . . . . Actions | -11 -10 -10 -10 -9 -8 -7 -7 -7 -7 -6 -6 -6 -6 --------- Run | Yrd Mat Min Exi Min Mat Fac Low Low Zio Pro Fac Low Low Total 9047 | 66 975 440 210 534 789 542 437 927 772 676 817 850 1012 Wait 844 | . 145 3 . 398 138 29 . 9 33 21 67 1 . Move 7552 | 54 698 435 208 109 493 442 433 854 736 592 672 832 994 Hop . | . . . . . . . . . . . . . . Pick Up 97 | 4 26 1 1 2 24 6 . 4 1 13 13 1 1 Fast Attach 40 | 6 2 . . . 14 7 . 3 . 2 5 . 1 Attach 43 | . 4 . . 3 13 3 . 2 . 11 5 1 1 Detach 1 | . . . . . 1 . . . . . . . . Swap 54 | 2 6 . . 1 15 10 1 5 1 5 6 2 . Drop 65 | . 2 1 1 . 26 12 . 5 1 2 14 . 1 Fire 333 | . 92 . . 19 65 33 3 32 . 27 35 13 14 Melee . | . . . . . . . . . . . . . . Ram . | . . . . . . . . . . . . . . Kick . | . . . . . . . . . . . . . . Crush 2 | . . . . 2 . . . . . . . . . Escape Stasis . | . . . . . . . . . . . . . . Rewire 16 | . . . . . . . . 13 . 3 . . . Trap . | . . . . . . . . . . . . . . Miscellaneous . | . . . . . . . . . . . . . . Route ------- -11/Scrapyard -10/Materials (discovered 4 exits: [*Mat x2] / [*Min x2]) -10/Mines (discovered 3 exits: [*Mat x2] / *Exi) -10/Exiles -9/Mines -8/Materials -7/Factory -7/Lower Caves -7/Lower Caves (discovered 2 exits: *Fac / [*Zio]) -7/Zion -6/Proximity Caves -6/Factory (discovered 5 exits: Fac x4 / [*Low]) -6/Lower Caves -6/Lower Caves (discovered 2 exits: *Fac / [*Dat]) History --------- Turn | Location | Event 4 | -11/Scrapyard | Discovered new exit (range 16) 75 | -11/Scrapyard | Entered Materials 314 | -10/Materials | Build established: Mutant 423 | -10/Materials | Discovered new exit (range 12) 588 | -10/Materials | Repaired Lgt. Assault Rifle 616 | -10/Materials | Repaired Lgt. Assault Rifle 643 | -10/Materials | Repaired Lgt. Treads 754 | -10/Materials | Core integrity fell below 50% 810 | -10/Materials | Discovered new exit (range 16) 931 | -10/Materials | Discovered new exit (range 13) 980 | -10/Materials | Core integrity fell below 20% 1081 | -10/Materials | Discovered new exit (range 15) 1304 | -10/Materials | Central database locked down 1388 | -10/Materials | Entered Mines 1583 | -10/Mines | Found a damaged Exp. Sensor Array with a note attached 1587 | -10/Mines | Found Prototype Device 1641 | -10/Mines | Discovered new exit (range 8) 1671 | -10/Mines | Discovered new exit (range 8) 1840 | -10/Mines | Learned Materials stockpile data 1883 | -10/Mines | Found a Scrap Suit stashed away for nefarious purposes 1952 | -10/Mines | Deemed a non-threat by the Exiles lab entrance 1952 | -10/Mines | Discovered new exit (range 5) 1958 | -10/Mines | Entered Exiles 1958 | -10/Exiles | Accompanied by 2 allies 1988 | -10/Exiles | Led the pair of lost Derelicts to a safe place 1991 | -10/Exiles | Met 8R-AWN 2012 | -10/Exiles | Met EX-HEX 2052 | -10/Exiles | Met EX-BIN 2066 | -10/Exiles | Aligned with FarCom system 2068 | -10/Exiles | Given EX-Vault access code 2099 | -10/Exiles | Opened EX-Vault 2107 | -10/Exiles | Found Latent Energy Streamer 2135 | -10/Exiles | Warned to stay clear of 0b10 Research branches 2153 | -10/Exiles | Exiles lab attacked by MAIN.C 2177 | -10/Exiles | Learned location of Zion (-7) 2217 | -10/Exiles | Discovered new exit (range 10) 2230 | -10/Exiles | Left Exiles lab with Latent Energy Streamer 2230 | -10/Exiles | Entered Mines 2231 | -9/Mines | Assembled infested the area 2236 | -9/Mines | Assisted by a Guerilla fighting off Assembled 2455 | -9/Mines | Received a Rocket Launcher from a helpful Derelict 2962 | -9/Mines | Discovered new exit (range 11) 2994 | -9/Mines | Entered Materials 2994 | -8/Materials | Evolved 4 slots: Propulsion x2, Utility x2 3303 | -8/Materials | Lost 5 parts (1p3n1w) 3574 | -8/Materials | Build established: Scavenger-Mutant 3974 | -8/Materials | Repaired Lgt. Treads 4009 | -8/Materials | Repaired Lgt. Treads 4026 | -8/Materials | Discovered new exit (range 4) 4112 | -8/Materials | Entered Factory 4112 | -7/Factory | Evolved 2 slots: Weapon x2 4158 | -7/Factory | Garrison activated, responded to threat 4202 | -7/Factory | Identified Exp. Sensor Array 4720 | -7/Factory | Build established: Scavenger-Skirmisher 4737 | -7/Factory | Repaired Hrd. Medium Armor Plating 4835 | -7/Factory | Discovered new exit (range 8) 4909 | -7/Factory | Identified exit to Lower Caves 4970 | -7/Factory | Entered Lower Caves 5073 | -7/Lower Caves | Learned 4 Factory zone layouts 5163 | -7/Lower Caves | Encountered a Warlord checkpoint 5204 | -7/Lower Caves | Learned Factory interactive machine intel 5268 | -7/Lower Caves | Build established: Tank 5482 | -7/Lower Caves | Discovered new exit (range 12) 5672 | -7/Lower Caves | Entered another Lower Caves area 5970 | -7/Lower Caves | Discovered new exit (range 11) 6156 | -7/Lower Caves | Attracted the attention of an 0b10 outpost 6212 | -7/Lower Caves | Destroyed 7 combat bots 6755 | -7/Lower Caves | Discovered new exit (range 16) 7179 | -7/Lower Caves | Entered Zion 7179 | -7/Zion | Accompanied by 1 ally 7299 | -7/Zion | Discovered new exit (range 10) 7464 | -7/Zion | Received a hallucinogenic algorithm 7645 | -7/Zion | Gained Derelict followers 7711 | -7/Zion | Gained Derelict followers 7751 | -7/Zion | Learned location of Extension (-4) 7775 | -7/Zion | Given the Hacking Drone Bay 7777 | -7/Zion | Found Prototype Device 8027 | -7/Zion | Gained Derelict followers 8082 | -7/Zion | Build established: Scavenger-Tank 8393 | -7/Zion | Entered Proximity Caves 8393 | -6/Proximity Caves | Accompanied by 11 allies 8395 | -6/Proximity Caves | Learned Factory stockpile data 8867 | -6/Proximity Caves | Attracted the attention of an 0b10 checkpoint 9093 | -6/Proximity Caves | Attracted the attention of an 0b10 outpost 9153 | -6/Proximity Caves | Lost 3 parts (1n1u1w) 9186 | -6/Proximity Caves | Lost 11 allies 9227 | -6/Proximity Caves | Lost 8 parts (4n4w) 9365 | -6/Proximity Caves | Learned Factory emergency access door positions 9380 | -6/Proximity Caves | Discovered new exit (range 15) 9411 | -6/Proximity Caves | System corruption reached 10% 9439 | -6/Proximity Caves | Spotted B-75 Beast 9465 | -6/Proximity Caves | Entered Factory 9465 | -6/Factory | Evolved 2 slots: Power x1, Propulsion x1 9469 | -6/Factory | Loaded intel: 54 interactive machine locations 9541 | -6/Factory | Repaired Rnf. Deuterium Engine? 9670 | -6/Factory | Discovered new exit (range 8) 9730 | -6/Factory | Central database locked down 9744 | -6/Factory | Identified exit to Factory 9774 | -6/Factory | Build established: Scavenger-Skirmisher 10170 | -6/Factory | Fabricated Imp. Medium Treads? 10424 | -6/Factory | Garrison activated, responded to threat 10516 | -6/Factory | Entered Lower Caves 10550 | -6/Lower Caves | Spotted B-75 Beast 11065 | -6/Lower Caves | Attracted the attention of an 0b10 checkpoint 11414 | -6/Lower Caves | Learned 8 Factory zone layouts 11445 | -6/Lower Caves | Encountered a Warlord checkpoint 11463 | -6/Lower Caves | Discovered new exit (range 6) 11595 | -6/Lower Caves | Entered another Lower Caves area 11648 | -6/Lower Caves | Discovered exit to Factory (range 7) 11797 | -6/Lower Caves | Entered a destroyed Warlord outpost 11959 | -6/Lower Caves | Attracted the attention of an 0b10 checkpoint 12601 | -6/Lower Caves | Discovered new exit (range 11) 12876 | -6/Lower Caves | Found Alien Artifact 12876 | -6/Lower Caves | Identified Core Expander 12876 | -6/Lower Caves | Installed Core Expander, added new Utility slot 12877 | -6/Lower Caves | Self-destructed Last Messages --------------- 11988_ Acquired derelict log, extracted data. World map confirmed: -4/Extension. 12133_ Searching scrap... 12133_ Found ECM Suite. 12133_ Found Particle Charger. 12133_ Found 58 Matter. 12571_ Searching scrap... 12571_ Found Hvy. Plasma Cannon. 12571_ Found Mak. System Shield. 12571_ Found Mak. Laser. 12571_ Found Energy Well. 12571_ Found 56 Matter. 12601_ EXIT=FOUND 12870_ C-55 Analyst: "How did you find me??? Please don't shoot, I'm a Derelict like you now! I just had to learn more about this intriguing device..." 12875_ Dropped Imp. Cooling System. 12876_ Acquired Alien Artifact. 12876_ Identified Core Expander. 12876_ Core Expander installed, core expanded with Utility slot. Map ----- +----------------------------------------------------+ | | | | | | | | | | | | | | | | | | | | | | | ?????????????????????????????????????????????????? | | ?????????????????????????????????????????????????? | | ?????????????????????????????????????????????????? | | ?????????????????????????????????????????????????? | | ?????????????????????????????????????????????????? | | ?????????????????????????????????????????????????? | | ?????????????????????????????????????????????????? | | ?????????????????????????????????????????????????? | | ?????????????????????????????????????????????????? | | ?????????????????????????????????????????????????? | | ?????????????????????????????????????????????????? | | ?????????????????????????????????????????????????? | | ??????????????????????#######????????????????????? | | ??????????######?????#########????????????#####??? | | ######????#######????###"@!###????????????#######? | | #######???## ###????##""" ##????????###### ##### | | ###???### ##????### c###????????###### ### | | ###??## ###????####;#####?????#### ## ## | | ######## ########## ####????##### | | ####### ######### ######### | | ## # ######## | | ## < ###! | | ### # ##### ###% | | ###### #### ####### ! | | ########## ####### | | #####??####### ###### #### | | # ###?????######### ##### | | # #####??????##### ##### ##### | | # ########??#### ###### ## ###### | | # #######?## ### ######### | | ## ###### ### ####??#### | | ### ##### ############ ##????######## | | ######## ### ######### ## ##??########## | | ######### ## # # # ##?##### #### | | ### ### ##### ^ #####?### ### | | ## ###### # #####?## | | # #### # ## # ##????## | | ## ## ###????### ## | | ### ### # # # ####????####### | +----------------------------------------------------+ Best States ------------- Heat Dissipation 83 Coolant Potential 65 Energy Generation 30 Energy Capacity 500 Matter Stores 300 Matter Capacity 300 Sight Range 16 Robot Scan Range 20 Terrain Scan Density 10 Armor Coverage 375 Evasion (%) 42 Recoil Reduction 4 Offensive Hacking 10 Defensive Hacking 11 Item Schematics ----------------- Arm. Treads | -8/Materials | Hacked Gauss Rifle | -7/Factory | Hacked Imp. Medium Treads | -6/Factory | Scanalyzed Structural Scanner | -6/Factory | Scanalyzed Robot Schematics ------------------ None Fabricated ------------ Imp. Medium Treads | x2 | -6/Factory Repaired ---------- Lgt. Assault Rifle | 25% | -10/Materials Lgt. Assault Rifle | 30% | -10/Materials Lgt. Treads | 72% | -10/Materials Lgt. Treads | 1% | -8/Materials Lgt. Treads | 30% | -8/Materials Hrd. Medium Armor Plating | 11% | -7/Factory Rnf. Deuterium Engine | 12% | -6/Factory Studied --------- Wheel | -6/Factory | Hacked Com. Wheel | -6/Factory | Hacked Alien Tech Used ----------------- Core Expander Achievements -------------- None Challenges ------------ None Game ------ Seed NavigationSmallCharger Manual? 0 Play Time 01:23:17 Cumulative 383.8 hours Start 2025.12.06 @ 19:38:38 End 2025.12.07 @ 14:57:33 Sessions 2 Manual Loads 0 Difficulty Rogue Special Mode None Game No. 393 Rogue 389 Adventurer 3 Explorer 1 Win Type - Total 5 Types 4/0/1/0/0/0/0/0/0/0 Lore% 85 Gallery% 80 Achievement% 67 Wizard Run 0 Options --------- Layout 0 ASCII 0 Keyboard 0 Movement Mouse Keybinds 0 Fullscreen 2 Font 18/SmallcapsGlow Map View 76x50 Zoom Use 0% Tactical HUD 1 Map Filters NONE Filters NONE Steam 1 RUN: 229ba076-0c31-46ad-b2b4-cca450306e55